fUSD/lending_fUSD_20251122
["ID","MTS","AMOUNT","RATE_DAILY","PERIOD"]
[394641037,1763806274111,-500.0,0.0001726,2]
[394641038,1763806274122,-500.0,0.0001726,2]
[394641039,1763806274133,-1055.95,0.0001726,2]
[394641040,1763806274144,-1463.02,0.0001726,2]
[394641041,1763806274155,-521.42,0.0001726,2]
[394641042,1763806274165,-733.24,0.0001726,2]
[394641043,1763806274177,-782.33,0.0001726,2]
[394641044,1763806274187,-500.0,0.0001726,2]
[394641045,1763806274200,-734.36,0.0001726,2]
[394641046,1763806274211,-500.0,0.0001726,2]
[394641047,1763806274221,-500.0,0.0001726,2]
[394641048,1763806274232,-500.0,0.0001726,2]
[394641049,1763806274243,-839.69,0.0001726,2]
[394641050,1763806274255,-500.0,0.0001726,2]
[394641051,1763806274265,-500.0,0.0001726,2]
[394641052,1763806274276,-1249.82,0.0001726,2]
[394641053,1763806274286,-1049.8,0.0001726,2]
[394641054,1763806274298,-523.31,0.0001726,2]
[394641055,1763806274309,-500.0,0.0001726,2]
[394641056,1763806274320,-1579.91,0.0001726,2]
[394641057,1763806274332,-500.0,0.0001726,2]
[394641058,1763806274342,-500.0,0.0001726,2]
[394641059,1763806274354,-500.0,0.0001726,2]
[394641060,1763806274364,-500.0,0.0001726,2]
[394641061,1763806274376,-500.0,0.0001726,2]
[394641062,1763806274397,-532.69,0.0001726,2]
[394641063,1763806274408,-570.72,0.0001726,2]
[394641064,1763806274419,-500.0,0.0001726,2]
[394641065,1763806274431,-515.86,0.0001726,2]
[394641066,1763806274441,-1073.42,0.0001726,2]
[394641067,1763806274452,-1688.87,0.0001726,2]
[394641068,1763806274462,-500.0,0.0001726,2]
[394641069,1763806274472,-500.0,0.0001726,2]
[394641070,1763806274483,-602.73,0.0001726,2]
[394641071,1763806274493,-786.03,0.0001726,2]
[394641072,1763806274504,-500.0,0.0001726,2]
[394641073,1763806274514,-500.0,0.0001726,2]
[394641074,1763806274525,-500.0,0.0001726,2]
[394641075,1763806274535,-1309.89,0.0001726,2]
[394641076,1763806274546,-500.0,0.0001726,2]
[394641077,1763806274561,-500.0,0.0001726,2]
[394641078,1763806274572,-536.68432205,0.0001726,2]
[394641079,1763806274582,-500.0,0.0001726,2]
[394641080,1763806274592,-919.35,0.0001726,2]
[394641081,1763806274603,-486.00588086,0.0001726,2]
[394641082,1763806274618,-606.55,0.0001726,2]
[394641083,1763806274631,-523.55,0.0001726,2]
[394641084,1763806274642,-816.25,0.0001726,2]
[394641085,1763806274653,-500.0,0.0001726,2]
[394641086,1763806274664,-500.0,0.0001726,2]
[394641087,1763806274674,-500.0,0.0001726,2]
[394641088,1763806274685,-500.0,0.0001726,2]
[394641089,1763806274696,-500.0,0.0001726,2]
[394641090,1763806274706,-1202.89,0.0001726,2]
[394641091,1763806274717,-696.52,0.0001726,2]
[394641092,1763806274728,-532.1,0.0001726,2]
[394641093,1763806274742,-500.0,0.0001726,2]
[394641094,1763806274753,-1008.12,0.0001726,2]
[394641095,1763806274763,-771.55,0.0001726,2]
[394641096,1763806274774,-682.29,0.0001726,2]
[394641097,1763806274786,-597.76,0.0001726,2]
[394641098,1763806274797,-2185.15,0.0001726,2]
[394641099,1763806274809,-500.0,0.0001726,2]
[394641100,1763806274819,-500.0,0.0001726,2]
[394641101,1763806274830,-500.0,0.0001726,2]
[394641102,1763806274840,-935.0,0.0001726,2]
[394641103,1763806274851,-561.06,0.0001726,2]
[394641104,1763806274861,-500.0,0.0001726,2]
[394641105,1763806274871,-558.65,0.0001726,2]
[394641106,1763806274883,-500.0,0.0001726,2]
[394641107,1763806274893,-1048.65,0.0001726,2]
[394641108,1763806274903,-500.0,0.0001726,2]
[394641109,1763806274914,-500.0,0.0001726,2]
[394641110,1763806274924,-517.79,0.0001726,2]
[394641111,1763806274934,-500.0,0.0001726,2]
[394641112,1763806274945,-500.0,0.0001726,2]
[394641113,1763806274956,-500.0,0.0001726,2]
[394641114,1763806274966,-420.34414861,0.0001726,2]
[394641115,1763806274976,-500.0,0.0001726,2]
[394641116,1763806274987,-500.0,0.0001726,2]
[394641117,1763806274999,-1090.24,0.0001726,2]
[394641118,1763806275009,-776.75,0.0001726,2]
[394641119,1763806275020,-500.0,0.0001726,2]
[394641120,1763806275031,-595.92,0.0001726,2]
[394641121,1763806275042,-500.0,0.0001726,2]
[394641122,1763806275052,-500.0,0.0001726,2]
[394641123,1763806275063,-360.75495329,0.0001726,2]
[394641124,1763806275073,-500.0,0.0001726,2]
[394641125,1763806275084,-500.0,0.0001726,2]
[394641126,1763806275095,-500.0,0.0001726,2]
[394641127,1763806275106,-2164.02,0.0001726,2]
[394641128,1763806275116,-500.0,0.0001726,2]
[394641129,1763806275126,-500.0,0.0001726,2]
[394641130,1763806275136,-500.0,0.0001726,2]
[394641131,1763806275147,-500.0,0.0001726,2]
[394641132,1763806275157,-655.49,0.0001726,2]
[394641133,1763806275168,-1677.03,0.0001726,2]
[394641134,1763806275178,-7021.18,0.0001726,2]
[394641135,1763806275189,-500.0,0.0001726,2]
[394641136,1763806275199,-696.44,0.0001726,2]
[394641137,1763806275209,-786.49,0.0001726,2]
[394641138,1763806275220,-500.0,0.0001726,2]
[394641139,1763806275230,-500.0,0.0001726,2]
[394641140,1763806275241,-500.0,0.0001726,2]
[394641141,1763806275252,-1780.25,0.0001726,2]
[394641142,1763806275262,-557.18,0.0001726,2]
[394641143,1763806275272,-987.68,0.0001726,2]
[394641144,1763806275282,-1070.85,0.0001726,2]
[394641145,1763806275293,-672.12,0.0001726,2]
[394641146,1763806275304,-500.0,0.0001726,2]
[394641147,1763806275314,-702.43,0.0001726,2]
[394641148,1763806275325,-628.98,0.0001726,2]
[394641149,1763806275335,-586.32,0.0001726,2]
[394641150,1763806275346,-500.0,0.0001726,2]
[394641151,1763806275367,-500.0,0.0001726,2]
[394641152,1763806275378,-500.0,0.0001726,2]
[394641153,1763806275389,-500.0,0.0001726,2]
[394641154,1763806275399,-1078.17,0.0001726,2]
[394641155,1763806275410,-500.0,0.0001726,2]
[394641156,1763806275420,-500.0,0.0001726,2]
[394641157,1763806275432,-500.0,0.0001726,2]
[394641158,1763806275442,-500.0,0.0001726,2]
[394641159,1763806275453,-519.14924375,0.0001726,2]
[394641160,1763806275463,-557.34,0.0001726,2]
[394641161,1763806275474,-500.0,0.0001726,2]
[394641162,1763806275485,-500.0,0.0001726,2]
[394641163,1763806275495,-500.0,0.0001726,2]
[394641164,1763806275505,-631.15,0.0001726,2]
[394641165,1763806275516,-1073.87,0.0001726,2]
[394641166,1763806275526,-500.0,0.0001726,2]
[394641167,1763806275537,-503.62,0.0001726,2]
[394641168,1763806275548,-500.0,0.0001726,2]
[394641169,1763806275559,-500.0,0.0001726,2]
[394641170,1763806275569,-881.11,0.0001726,2]
[394641171,1763806275580,-500.0,0.0001726,2]
[394641172,1763806275590,-5846.52,0.0001726,2]
[394641173,1763806275601,-500.0,0.0001726,2]
[394641174,1763806275611,-729.49,0.0001726,2]
[394641175,1763806275622,-272.61142787,0.0001726,2]
[394641176,1763806275632,-4450.71,0.0001726,2]
[394641177,1763806275643,-3727.77,0.0001726,2]
[394641178,1763806275655,-500.0,0.0001726,2]
[394641179,1763806275665,-500.0,0.0001726,2]
[394641180,1763806275676,-500.0,0.0001726,2]
[394641181,1763806275686,-673.15,0.0001726,2]
[394641182,1763806275697,-867.82,0.0001726,2]
[394641183,1763806275707,-674.27,0.0001726,2]
[394641184,1763806275718,-500.0,0.0001726,2]
[394641185,1763806275730,-500.0,0.0001726,2]
[394641186,1763806275744,-621.5853158,0.0001726,2]
[394641187,1763806275754,-291.84334637,0.0001726,2]
[394641188,1763806275766,-1064.84,0.0001726,2]
[394641189,1763806275776,-978.13,0.0001726,2]
[394641190,1763806275787,-1344.66,0.0001726,2]
[394641191,1763806275798,-500.0,0.0001726,2]
[394641192,1763806275810,-651.06,0.0001726,2]
[394641193,1763806275821,-623.05444888,0.0001726,2]
[394641194,1763806275832,-500.0,0.0001726,2]
[394641195,1763806275843,-835.55,0.0001726,2]
[394641196,1763806275853,-500.0,0.0001726,2]
[394641197,1763806275864,-500.0,0.0001726,2]
[394641198,1763806275875,-500.0,0.0001726,2]
[394641199,1763806276292,-776.5,0.0001726,2]
[394641200,1763806276317,-500.0,0.0001726,2]
[394641201,1763806276337,-567.01,0.0001726,2]
[394641202,1763806276347,-662.91,0.0001726,2]
[394641203,1763806276361,-500.0,0.0001726,2]
[394641204,1763806276371,-765.48,0.0001726,2]
[394641205,1763806276380,-500.0,0.0001726,2]
[394641206,1763806276389,-577.58,0.0001726,2]
[394641207,1763806276398,-819.38,0.0001726,2]
[394641208,1763806276408,-469.04087973,0.0001726,2]
[394641209,1763806276417,-500.0,0.0001726,2]
[394641210,1763806276426,-500.0,0.0001726,2]
[394641211,1763806276436,-994.62,0.0001726,2]
[394641212,1763806276445,-2977.14,0.0001726,2]
[394641213,1763806276455,-500.0,0.0001726,2]
[394641214,1763806276464,-358.00268719,0.0001726,2]
[394641215,1763806276474,-497.88910816,0.0001726,2]
[394641216,1763806276482,-500.0,0.0001726,2]
[394641217,1763806276491,-584.85,0.0001726,2]
[394641218,1763806276500,-785.63,0.0001726,2]
[394641219,1763806276509,-500.0,0.0001726,2]
[394641220,1763806276518,-924.21,0.0001726,2]
[394641221,1763806276528,-600.0,0.0001726,2]
[394641222,1763806276537,-600.0,0.0001726,2]
[394641223,1763806276547,-1000.0,0.00017321,2]
[394641224,1763806276556,-554.24080951,0.00017379,2]
[394641225,1763806276565,-355.53126832,0.00017393,2]
[394641226,1763806276574,-500.0,0.00017397,2]
[394641227,1763806276583,-651.0,0.00017397,2]
[394641228,1763806276593,-500.0,0.00017397,2]
[394641229,1763806276602,-500.0,0.00017397,2]
[394641230,1763806276611,-500.0,0.00017397,2]
[394641231,1763806276621,-272.28545665,0.00017397,2]
[394641232,1763806276630,-500.0,0.00017397,2]
[394641233,1763806276640,-469.0,0.00017397,2]
[394641234,1763806276651,-553.0,0.00017397,2]
[394641235,1763806276661,-840.40059214,0.000174,2]
[394641236,1763806276671,-10024.71496974,0.000174,2]
[394641237,1763806276681,-166.66,0.00017453,2]
[394641238,1763806276690,-502.59676737,0.00017471,2]
[394641239,1763806276700,-10124.3905791,0.00017483,2]
[394641240,1763806276710,-3221.331768,0.00017483,2]
[394641241,1763806276719,-707.1559922,0.00017496,2]
[394641242,1763806276734,-509.06308697,0.00017521,2]
[394641243,1763806276744,-500.0,0.00017521,2]
[394641244,1763806276754,-501.18787608,0.00017521,2]
[394641245,1763806276764,-1000.86791851,0.00017521,2]
[394641246,1763806276774,-426.67177017,0.00017523,2]
[394641247,1763806276783,-500.0,0.00017534,2]
[394641248,1763806276793,-651.0,0.00017534,2]
[394641249,1763806276802,-500.0,0.00017534,2]
[394641250,1763806276812,-500.0,0.00017534,2]
[394641251,1763806276822,-500.0,0.00017534,2]
[394641252,1763806276831,-500.0,0.00017534,2]
[394641253,1763806276840,-469.0,0.00017534,2]
[394641254,1763806276850,-553.0,0.00017534,2]
[394641255,1763806276859,-500.0,0.00017534,2]
[394641256,1763806276869,-500.0,0.00017534,2]
[394641257,1763806276879,-500.0,0.00017534,2]
[394641258,1763806276888,-500.0,0.00017534,2]
[394641259,1763806276909,-500.0,0.00017534,2]
[394641260,1763806276919,-500.0,0.00017534,2]
[394641261,1763806276929,-867.5,0.00017534,2]
[394641262,1763806276939,-500.0,0.00017534,2]
[394641263,1763806276949,-249.82394437,0.00017534,2]
[394641264,1763806276959,-500.0,0.00017534,2]
[394641265,1763806276970,-500.0,0.00017534,2]
[394641266,1763806276981,-643.22,0.00017534,2]
[394641267,1763806276992,-843.09,0.00017534,2]
[394641268,1763806277002,-664.19,0.00017534,2]
[394641269,1763806277012,-579.49,0.00017534,2]
[394641270,1763806277023,-944.02,0.00017534,2]
[394641271,1763806277034,-421.78324106,0.00017534,2]
[394641272,1763806277045,-500.0,0.00017534,2]
[394641273,1763806277055,-781.7,0.00017534,2]
[394641274,1763806277065,-500.0,0.00017534,2]
[394641275,1763806277076,-754.3,0.00017534,2]
[394641276,1763806277087,-500.0,0.00017534,2]
[394641277,1763806277096,-500.0,0.00017534,2]
[394641278,1763806277107,-500.0,0.00017534,2]
[394641279,1763806277117,-826.89,0.00017534,2]
[394641280,1763806277132,-500.0,0.00017534,2]
[394641281,1763806277147,-500.0,0.00017534,2]
[394641282,1763806277157,-760.07,0.00017534,2]
[394641283,1763806277167,-563.13540847,0.00017534,2]
[394641284,1763806277176,-660.25,0.00017534,2]
[394641285,1763806277189,-500.0,0.00017534,2]
[394641286,1763806277198,-500.0,0.00017534,2]
[394641287,1763806277208,-500.0,0.00017534,2]
[394641288,1763806277218,-500.0,0.00017534,2]
[394641289,1763806277228,-620.59,0.00017534,2]
[394641290,1763806277237,-718.76,0.00017534,2]
[394641291,1763806277247,-589.29,0.00017534,2]
[394641292,1763806277257,-573.14,0.00017534,2]
[394641293,1763806277267,-500.0,0.00017534,2]
[394641294,1763806277276,-523.48,0.00017534,2]
[394641295,1763806277286,-500.0,0.00017534,2]
[394641296,1763806277296,-500.0,0.00017534,2]
[394641297,1763806277305,-1151.27,0.00017534,2]
[394641298,1763806277315,-539.63,0.00017534,2]
[394641299,1763806277325,-500.0,0.00017534,2]
[394641300,1763806277335,-943.25,0.00017534,2]
[394641301,1763806277345,-500.0,0.00017534,2]
[394641302,1763806277354,-532.89,0.00017534,2]
[394641303,1763806277364,-500.0,0.00017534,2]
[394641304,1763806277374,-500.0,0.00017534,2]
[394641305,1763806277384,-717.92,0.00017534,2]
[394641306,1763806277394,-500.0,0.00017534,2]
[394641307,1763806277404,-500.0,0.00017534,2]
[394641308,1763806277415,-791.9,0.00017534,2]
[394641309,1763806277425,-500.0,0.00017534,2]
[394641310,1763806277435,-671.16,0.00017534,2]
[394641311,1763806277450,-513.69,0.00017534,2]
[394641312,1763806277461,-718.46,0.00017534,2]
[394641313,1763806277474,-903.01,0.00017534,2]
[394641314,1763806277485,-500.0,0.00017534,2]
[394641315,1763806277496,-500.0,0.00017534,2]
[394641316,1763806277507,-500.0,0.00017534,2]
[394641317,1763806277518,-619.27,0.00017534,2]
[394641318,1763806277528,-633.07,0.00017534,2]
[394641319,1763806277544,-512.4,0.00017534,2]
[394641320,1763806277565,-734.0,0.00017534,2]
[394641321,1763806277578,-686.05,0.00017534,2]
[394641322,1763806277588,-689.73,0.00017534,2]
[394641323,1763806277599,-515.09,0.00017534,2]
[394641324,1763806277609,-534.13,0.00017534,2]
[394641325,1763806277618,-909.79,0.00017534,2]
[394641326,1763806277643,-500.0,0.00017534,2]
[394641327,1763806277654,-987.88,0.00017534,2]
[394641328,1763806277664,-500.0,0.00017534,2]
[394641329,1763806277675,-424.59613222,0.00017534,2]
[394641330,1763806277685,-500.0,0.00017534,2]
[394641331,1763806277696,-1118.33,0.00017534,2]
[394641332,1763806277706,-593.96,0.00017534,2]
[394641333,1763806277716,-532.39,0.00017534,2]
[394641334,1763806277727,-500.0,0.00017534,2]
[394641335,1763806277741,-500.0,0.00017534,2]
[394641336,1763806277751,-500.0,0.00017534,2]
[394641337,1763806277761,-500.0,0.00017534,2]
[394641338,1763806277771,-500.0,0.00017534,2]
[394641339,1763806277782,-500.0,0.00017534,2]
[394641340,1763806277793,-500.0,0.00017534,2]
[394641341,1763806277803,-500.0,0.00017534,2]
[394641342,1763806277815,-500.0,0.00017534,2]
[394641343,1763806277824,-500.0,0.00017534,2]
[394641344,1763806277834,-500.0,0.00017534,2]
[394641345,1763806277844,-568.02591006,0.00017534,2]
[394641346,1763806277854,-500.0,0.00017534,2]
[394641347,1763806277864,-745.16,0.00017534,2]
[394641348,1763806277874,-643.4,0.00017534,2]
[394641349,1763806277885,-760.48,0.00017534,2]
[394641350,1763806277895,-500.0,0.00017534,2]
[394641351,1763806277904,-500.0,0.00017534,2]
[394641352,1763806277914,-337.19768297,0.00017534,2]
[394641353,1763806277923,-498.75013512,0.00017534,2]
[394641354,1763806277932,-660.26,0.00017534,2]
[394641355,1763806277942,-500.0,0.00017534,2]
[394641356,1763806277951,-500.0,0.00017534,2]
[394641357,1763806277961,-500.0,0.00017534,2]
[394641358,1763806277971,-500.0,0.00017534,2]
[394641359,1763806277981,-643.35,0.00017534,2]
[394641360,1763806277990,-536.96,0.00017534,2]
[394641361,1763806278000,-561.03,0.00017534,2]
[394641362,1763806278010,-667.06,0.00017534,2]
[394641363,1763806278020,-500.0,0.00017534,2]
[394641364,1763806278034,-500.0,0.00017534,2]
[394641365,1763806278043,-500.0,0.00017534,2]
[394641366,1763806278053,-840.36,0.00017534,2]
[394641367,1763806278064,-588.85,0.00017534,2]
[394641368,1763806278074,-527.44,0.00017534,2]
[394641369,1763806278083,-500.0,0.00017534,2]
[394641370,1763806278094,-500.0,0.00017534,2]
[394641371,1763806278103,-1117.89,0.00017534,2]
[394641372,1763806278113,-500.0,0.00017534,2]
[394641373,1763806278124,-761.79,0.00017534,2]
[394641374,1763806278152,-620.55,0.00017534,2]
[394641375,1763806278162,-500.0,0.00017534,2]
[394641376,1763806278172,-593.36,0.00017534,2]
[394641377,1763806278182,-500.0,0.00017534,2]
[394641378,1763806278192,-676.83,0.00017534,2]
[394641379,1763806278202,-900.44,0.00017534,2]
[394641380,1763806278211,-1015.0,0.00017534,2]
[394641381,1763806278221,-588.06,0.00017534,2]
[394641382,1763806278231,-511.04,0.00017534,2]
[394641383,1763806278241,-500.0,0.00017534,2]
[394641384,1763806278251,-1144.77,0.00017534,2]
[394641385,1763806278261,-787.96,0.00017534,2]
[394641386,1763806278271,-500.0,0.00017534,2]
[394641387,1763806278280,-500.0,0.00017534,2]
[394641388,1763806278290,-865.95,0.00017534,2]
[394641389,1763806278300,-592.3,0.00017534,2]
[394641390,1763806278310,-540.6,0.00017534,2]
[394641391,1763806278320,-500.0,0.00017534,2]
[394641392,1763806278329,-790.49,0.00017534,2]
[394641393,1763806278339,-265.24344219,0.00017534,2]
[394641394,1763806278348,-580.1,0.00017534,2]
[394641395,1763806278358,-500.0,0.00017534,2]
[394641396,1763806278368,-500.0,0.00017534,2]
[394641397,1763806278377,-766.2,0.00017534,2]
[394641398,1763806278387,-557.29,0.00017534,2]
[394641399,1763806278396,-490.03810983,0.00017534,2]
[394641400,1763806278407,-500.0,0.00017534,2]
[394641401,1763806278421,-637.13,0.00017534,2]
[394641402,1763806278430,-1511.77,0.00017534,2]
[394641403,1763806278441,-699.88,0.00017534,2]
[394641404,1763806278451,-500.0,0.00017534,2]
[394641405,1763806278461,-705.23,0.00017534,2]
[394641406,1763806278472,-500.0,0.00017534,2]
[394641407,1763806278482,-768.25,0.00017534,2]
[394641408,1763806278492,-561.04,0.00017534,2]
[394641409,1763806278502,-500.0,0.00017534,2]
[394641410,1763806278512,-681.07,0.00017534,2]
[394641411,1763806278521,-220.91319524,0.00017534,2]
[394641412,1763806278531,-500.0,0.00017534,2]
[394641413,1763806278540,-889.28,0.00017534,2]
[394641414,1763806278550,-311.60020268,0.00017534,2]
[394641415,1763806278559,-500.0,0.00017534,2]
[394641416,1763806278569,-500.0,0.00017534,2]
[394641417,1763806278579,-500.0,0.00017534,2]
[394641418,1763806278588,-500.0,0.00017534,2]
[394641419,1763806278598,-910.7,0.00017534,2]
[394641420,1763806278607,-581.69,0.00017534,2]
[394641421,1763806278617,-681.0,0.00017534,2]
[394641422,1763806278632,-500.0,0.00017534,2]
[394641423,1763806278644,-500.0,0.00017534,2]
[394641424,1763806278653,-561.58,0.00017534,2]
[394641425,1763806278664,-520.44,0.00017534,2]
[394641426,1763806278675,-892.07,0.00017534,2]
[394641427,1763806278685,-500.0,0.00017534,2]
[394641428,1763806278696,-500.0,0.00017534,2]
[394641429,1763806278706,-648.76,0.00017534,2]
[394641430,1763806278716,-540.37,0.00017534,2]
[394641431,1763806278729,-500.0,0.00017534,2]
[394641432,1763806278741,-500.0,0.00017534,2]
[394641433,1763806278751,-1478.21,0.00017534,2]
[394641434,1763806278762,-500.0,0.00017534,2]
[394641435,1763806278774,-500.0,0.00017534,2]
[394641436,1763806278784,-680.96,0.00017534,2]
[394641437,1763806278793,-500.0,0.00017534,2]
[394641438,1763806278809,-685.91,0.00017534,2]
[394641439,1763806278819,-500.0,0.00017534,2]
[394641440,1763806278828,-778.77,0.00017534,2]
[394641441,1763806278838,-500.0,0.00017534,2]
[394641442,1763806278848,-500.0,0.00017534,2]
[394641443,1763806278859,-500.0,0.00017534,2]
[394641444,1763806278868,-500.0,0.00017534,2]
[394641445,1763806278884,-714.38,0.00017534,2]
[394641446,1763806278894,-500.0,0.00017534,2]
[394641447,1763806278904,-500.0,0.00017534,2]
[394641448,1763806278914,-758.68,0.00017534,2]
[394641449,1763806278923,-745.24,0.00017534,2]
[394641450,1763806279181,-758.78,0.00017534,2]
[394641451,1763806279191,-540.82416401,0.00017534,2]
[394641452,1763806279200,-1003.75,0.00017534,2]
[394641453,1763806279210,-500.0,0.00017534,2]
[394641454,1763806279221,-500.0,0.00017534,2]
[394641455,1763806279230,-500.0,0.00017534,2]
[394641456,1763806279240,-500.0,0.00017534,2]
[394641457,1763806279249,-753.49,0.00017534,2]
[394641458,1763806279258,-697.04,0.00017534,2]
[394641459,1763806279269,-595.07,0.00017534,2]
[394641460,1763806279280,-500.0,0.00017534,2]
[394641461,1763806279289,-892.51,0.00017534,2]
[394641462,1763806279299,-500.0,0.00017534,2]
[394641463,1763806279308,-507.73,0.00017534,2]
[394641464,1763806279318,-500.0,0.00017534,2]
[394641465,1763806279327,-429.65758698,0.00017534,2]
[394641466,1763806279338,-500.0,0.00017534,2]
[394641467,1763806279348,-817.08,0.00017534,2]
[394641468,1763806279369,-500.0,0.00017534,2]
[394641469,1763806279380,-1276.37,0.00017534,2]
[394641470,1763806279390,-598.13,0.00017534,2]
[394641471,1763806279399,-500.0,0.00017534,2]
[394641472,1763806279408,-500.0,0.00017534,2]
[394641473,1763806279417,-683.96,0.00017534,2]
[394641474,1763806279427,-179.66502357,0.00017534,2]
[394641475,1763806279436,-500.0,0.00017534,2]
[394641476,1763806279446,-724.4,0.00017534,2]
[394641477,1763806279455,-500.0,0.00017534,2]
[394641478,1763806279465,-700.99,0.00017534,2]
[394641479,1763806279474,-506.6,0.00017534,2]
[394641480,1763806279484,-500.0,0.00017534,2]
[394641481,1763806279493,-500.0,0.00017534,2]
[394641482,1763806279503,-830.04,0.00017534,2]
[394641483,1763806279514,-500.0,0.00017534,2]
[394641484,1763806279523,-509.8,0.00017534,2]
[394641485,1763806279533,-500.0,0.00017534,2]
[394641486,1763806279542,-500.0,0.00017534,2]
[394641487,1763806279551,-645.82,0.00017534,2]
[394641488,1763806279561,-500.0,0.00017534,2]
[394641489,1763806279570,-500.0,0.00017534,2]
[394641490,1763806279579,-500.0,0.00017534,2]
[394641491,1763806279588,-500.0,0.00017534,2]
[394641492,1763806279598,-500.0,0.00017534,2]
[394641493,1763806279607,-500.0,0.00017534,2]
[394641494,1763806279616,-651.49,0.00017534,2]
[394641495,1763806279626,-500.0,0.00017534,2]
[394641496,1763806279636,-500.0,0.00017534,2]
[394641497,1763806279645,-500.0,0.00017534,2]
[394641498,1763806279654,-680.93,0.00017534,2]
[394641499,1763806279663,-950.5,0.00017534,2]
[394641500,1763806279675,-500.0,0.00017534,2]
[394641501,1763806279684,-768.8,0.00017534,2]
[394641502,1763806279693,-1163.93,0.00017534,2]
[394641503,1763806279703,-938.85,0.00017534,2]
[394641504,1763806279712,-500.0,0.00017534,2]
[394641505,1763806279721,-816.31,0.00017534,2]
[394641506,1763806279731,-500.0,0.00017534,2]
[394641507,1763806279744,-500.0,0.00017534,2]
[394641508,1763806279753,-695.83,0.00017534,2]
[394641509,1763806279763,-500.0,0.00017534,2]
[394641510,1763806279772,-1025.64,0.00017534,2]
[394641511,1763806279782,-692.67,0.00017534,2]
[394641512,1763806279793,-970.47,0.00017534,2]
[394641513,1763806279803,-500.0,0.00017534,2]
[394641514,1763806279815,-500.0,0.00017534,2]
[394641515,1763806279824,-500.0,0.00017534,2]
[394641516,1763806279834,-500.0,0.00017534,2]
[394641517,1763806279844,-5173.16,0.00017534,2]
[394641518,1763806279853,-500.0,0.00017534,2]
[394641519,1763806279863,-500.0,0.00017534,2]
[394641520,1763806279872,-490.56,0.00017534,2]
[394641521,1763806279883,-500.0,0.00017534,2]
[394641522,1763806279892,-500.0,0.00017534,2]
[394641523,1763806279902,-387.71769912,0.00017534,2]
[394641524,1763806279912,-500.0,0.00017534,2]
[394641525,1763806279922,-974.11,0.00017534,2]
[394641526,1763806279931,-500.0,0.00017534,2]
[394641527,1763806279943,-500.0,0.00017534,2]
[394641528,1763806279953,-500.0,0.00017534,2]
[394641529,1763806279962,-500.0,0.00017534,2]
[394641530,1763806279971,-942.8,0.00017534,2]
[394641531,1763806279980,-342.74131623,0.00017534,2]
[394641532,1763806279990,-598.56652216,0.00017534,2]
[394641533,1763806279999,-1130.33,0.00017534,2]
[394641534,1763806280009,-500.0,0.00017534,2]
[394641535,1763806280018,-317.64533628,0.00017534,2]
[394641536,1763806280028,-2544.87,0.00017534,2]